Cogmind - Beta 15 @@@ ROGUE MODE // 2025.09.27 @ 08:17:48 Player: lepire Result: Destroyed by S-43 Plague with Heavy Machine Gun Performance ------------- Evolutions (8) 4000 Regions Visited (14) 2800 Robots Destroyed (210) 1050 Value Destroyed (8702) 8702 Prototype IDs (16) 320 Alien Tech Used (0) 0 Bonus (1754) 1754 TOTAL SCORE: 18626 Bonus ------- High Alert Combat Kills 354 Entered Garrisons 400 Used RIF Installer 1000 Cogmind --------- Core Integrity 0/1450 Matter 34/300 Energy 99/100 System Corruption 0% Temperature Cool (0) Movement Core (50) Location -2/Research Parts ------- > --- POWER (2) -------- (None) > --- PROPULSION (4) --- (None) > --- UTILITY (13) ----- (None) > --- WEAPON (4) ------- (None) > --- INVENTORY (5) ---- Light Antimatter Reactor Improved Q-thruster Advanced Power Amplifier Improved Transmission Jammer Improved Force Field Peak State ------------ > --- POWER ------------ Light Antimatter Reactor Light Antimatter Reactor > --- PROPULSION ------- Armored Treads Advanced Medium Treads Centrium Wheel > --- UTILITY ---------- Advanced Heat Sink Large Storage Unit Advanced Visual Processing Unit Armor Integrity Analyzer Weapon Cycler Phase Shifter Heavy Armor Plating Layered Medium Armor Plating Improved Shield Generator Point Defense System Relay Coupler [NC] Mini Drone Bay > --- WEAPON ----------- Plasma Rifle KE Penetrator Railgun Railgun > --- INVENTORY -------- Light Particle Reactor Advanced Coolant Injector Improved Terrain Scan Processor Advanced Targeting Computer Improved Launcher Guidance Computer Improved Transmission Jammer Advanced Cloaking Device Advanced Hardlight Generator Improved Force Field System Shield Railgun Fusion Bomb Launcher Improved Remote Datajack [Rating: 114] Favorites ----------- Power Cooled Ion Engine Engine Cooled Ion Engine Power Core Neutrino Core Reactor Light Antimatter Reactor Propulsion Armored Treads Treads Armored Treads Leg Aluminum Leg Wheel Armored Wheel Flight Unit Improved VTOL Module Utility Large Storage Unit Device Advanced Heat Sink Storage Large Storage Unit Processor Advanced Visual Processing Unit Hackware Relay Coupler [NC] Protection Hardened Medium Armor Plating Weapon Heavy Assault Rifle Energy Gun Cooled Pulse Rifle Ballistic Gun Heavy Assault Rifle Launcher Rocket Launcher Special Weapon Improved Remote Datajack Slashing Weapon Mining Claw Build | -11 -10 -9 -9 -8 -8 -8 -7 -7 -7 -6 -5 -4 -3 -2 ------- Run | Yrd Mat Mat Min Mat Gar Mat Fac Gar Fac Fac Fac Fac Res Res Slots Evolved 16 | . . 2 . 2 . . 2 . . 2 2 2 2 2 Power 1 | . . . . . . . . . . . . . . 1 Propulsion 2 | . . . . . . . . . . 2 . . . . Utility 11 | . . 1 . 1 . . 2 . . . 2 2 2 1 Weapon 2 | . . 1 . 1 . . . . . . . . . . Parts Attached 104 | 4 3 10 1 22 . 2 14 5 3 2 9 14 9 6 Power 10 | . . 1 . 2 . . 1 . . . 2 1 2 1 Engine 3 | . . 1 . 1 . . 1 . . . . . . . Core 3 | . . . . 1 . . . . . . 2 . . . Reactor 4 | . . . . . . . . . . . . 1 2 1 Propulsion 14 | 2 . 2 1 2 . 1 2 1 . 1 . 1 1 . Treads 8 | 1 . . 1 1 . 1 2 1 . . . . 1 . Leg . | . . . . . . . . . . . . . . . Wheel 5 | 1 . 2 . . . . . . . 1 . 1 . . Hover . | . . . . . . . . . . . . . . . Flight 1 | . . . . 1 . . . . . . . . . . Utility 48 | 1 1 4 . 11 . . 6 1 2 1 5 8 4 4 Device 26 | 1 . 3 . 4 . . 3 . . 1 2 6 3 3 Storage 2 | . 1 . . 1 . . . . . . . . . . Processor 4 | . . . . 1 . . 2 . . . . . . 1 Hackware 5 | . . . . . . . 1 1 1 . 1 1 . . Protection 11 | . . 1 . 5 . . . . 1 . 2 1 1 . Artifact . | . . . . . . . . . . . . . . . Weapon 32 | 1 2 3 . 7 . 1 5 3 1 . 2 4 2 1 Energy Gun 15 | 1 2 1 . 4 . . 4 . 1 . 1 1 . . Energy Cannon . | . . . . . . . . . . . . . . . Ballistic Gun 9 | . . 1 . 1 . . 1 1 . . . 3 2 . Ballistic Cannon . | . . . . . . . . . . . . . . . Launcher 5 | . . . . 2 . 1 . 1 . . . . . 1 Special Weapon 2 | . . . . . . . . 1 . . 1 . . . Impact Weapon . | . . . . . . . . . . . . . . . Slashing Weapon 1 | . . 1 . . . . . . . . . . . . Piercing Weapon . | . . . . . . . . . . . . . . . Special Melee Weapon . | . . . . . . . . . . . . . . . Unidentified Prototypes 9 | . . . . 5 . . 2 . . . . . 1 1 Parts Lost 38 | . . 4 . 3 . . 4 5 . . 2 7 1 12 Power 3 | . . . . . . . 1 . . . 1 1 . . Propulsion 7 | . . 1 . 1 . . . 1 . . . 1 . 3 Utility 17 | . . 2 . 2 . . 3 2 . . . 1 1 6 Weapon 11 | . . 1 . . . . . 2 . . 1 4 . 3 Highest Loss Streak 10 | . . 4 . 1 . . 2 1 . . 1 3 1 10 To Critical Strikes . | . . . . . . . . . . . . . . . Average Backups 12 | 5 6 8 7 10 14 14 13 13 12 13 14 14 13 10 Power . | 1 1 1 2 1 1 1 . . . . . . . 1 Propulsion . | 4 2 1 . . . . 1 . . . . . . . Utility 8 | . 2 4 4 7 11 10 8 9 8 11 12 12 11 7 Weapon 1 | . . 1 1 1 1 2 2 3 2 1 1 . . 1 Tool/Special . | . . . . . . . . . . . . . . . Unused Backups 36 | 9 1 . . 6 2 1 2 . 1 4 2 1 . 7 Power 5 | 1 . . . 3 . . . . . . . . . 1 Propulsion 7 | 4 . . . . . . 2 . . . . . . 1 Utility 20 | 1 1 . . 2 2 1 . . 1 4 2 1 . 5 Weapon 4 | 3 . . . 1 . . . . . . . . . . Tool/Special . | . . . . . . . . . . . . . . . Average Slot Usage (%) 92 | . 100 94 100 91 100 100 98 92 90 92 87 84 72 61 Engine 6 | . 14 11 11 5 9 9 6 7 7 6 3 . . . Treads 9 | . 14 11 11 8 9 9 7 12 15 12 11 6 6 5 Wheel 7 | . 14 9 11 8 9 9 7 2 . 5 5 8 4 2 Device 13 | . 14 14 22 12 18 18 17 8 7 6 5 14 15 18 Storage 7 | . 14 11 11 9 9 9 7 7 7 6 5 5 4 2 Processor 7 | . . . . 4 . . 10 15 15 13 11 10 9 6 Hackware 1 | . . . . . . . . . 5 6 5 5 4 2 Protection 6 | . . 4 . 9 9 9 6 6 . 6 10 9 6 3 Energy Gun 15 | . 28 27 22 14 18 18 15 15 18 20 16 9 4 2 Ballistic Gun 11 | . . 4 11 15 18 17 15 12 6 5 4 6 9 8 Peak Build Rating 114 | 7 8 14 14 32 33 34 48 46 46 57 76 93 97 114 Average Rating 41 | 6 7 10 13 21 32 33 41 42 40 55 68 83 78 77 On Entrance 37 | 6 7 8 13 14 32 33 34 44 39 46 57 66 63 97 Naked Turns 132 | . . . . . . . . . . . . . . 132 Heaviest Build 105 | 14 20 29 27 52 52 53 54 47 51 51 93 105 89 105 Greatest Support 44 | 20 16 20 20 20 12 12 12 40 40 28 28 44 16 30 Greatest Overweight (x) 18 | . 1 2 1 4 4 4 4 3 1 1 3 3 5 18 Average Overweight (x) 2 | . . 1 1 2 4 4 3 1 1 1 2 2 3 2 Largest Inventory Capacity 15 | 8 10 10 10 15 15 15 15 15 15 15 15 15 15 15 Average Capacity 13 | 8 9 10 10 13 15 15 15 15 15 15 15 15 15 12 Most Carried 15 | 6 10 10 8 15 15 15 15 15 15 15 15 15 15 14 Average Carried 12 | 5 6 8 7 10 14 14 13 13 13 14 14 14 13 10 Final Capacity 15 | 8 10 10 10 15 15 15 15 15 15 15 15 15 15 5 Final Carried 15 | 3 10 8 8 12 15 15 15 14 13 14 14 12 14 5 Class Distribution -------------------- 39% | Gunner 19% | Tank 12% | Scavenger-Tank 10% | Scavenger-Gunner 8% | Bothacker-Gunner 7% | Mutant Dominant Class ---------------- Mutant | -10/Materials Gunner | -9/Materials Gunner | -9/Mines Scavenger-Tank | -8/Materials Scavenger-Gunner | -8/Garrison Scavenger-Gunner | -8/Materials Gunner | -7/Factory Gunner | -7/Garrison Bothacker-Gunner | -7/Factory Bothacker-Gunner | -6/Factory Tank | -5/Factory Tank | -4/Factory Scavenger-Tank | -3/Research Scavenger-Tank | -2/Research Resources | -11 -10 -9 -9 -8 -8 -8 -7 -7 -7 -6 -5 -4 -3 -2 ----------- Run | Yrd Mat Mat Min Mat Gar Mat Fac Gar Fac Fac Fac Fac Res Res Matter Collected 5198 | 240 138 88 111 762 . 470 420 684 94 122 686 817 188 378 Remotely . | . . . . . . . . . . . . . . . Salvage Created 8129 | 122 317 139 36 1795 59 1034 879 822 21 122 987 845 188 763 Parts 377 | 11 10 7 4 115 5 36 34 35 3 9 45 29 5 29 Haulers Intercepted 14 | . 2 . . 6 . 4 2 . . . . . . . Recyclers Shooed 8 | 1 . . . . . 1 . . . . 3 1 . 2 Parts Field Recycled . | . . . . . . . . . . . . . . . Retrieved Matter . | . . . . . . . . . . . . . . . Parts Self-Destructed . | . . . . . . . . . . . . . . . Prevented . | . . . . . . . . . . . . . . . Kills | -11 -10 -9 -9 -8 -8 -8 -7 -7 -7 -6 -5 -4 -3 -2 ------- Run | Yrd Mat Mat Min Mat Gar Mat Fac Gar Fac Fac Fac Fac Res Res Combat Hostiles Destroyed 139 | . 3 4 . 28 1 11 11 25 2 2 15 16 2 19 Guns 86 | . 3 2 . 23 1 8 10 15 . 2 5 11 2 4 AOE 49 | . . 2 . 5 . 3 . 10 2 . 7 5 . 15 Classes Destroyed 17 | 2 4 2 . 5 . . 1 2 . . . . . 1 Worker 19 | . 1 . 2 2 . 2 3 . . . 6 1 . 2 Builder 6 | . . . . 3 . . . . . . 3 . . . Tunneler 3 | 3 . . . . . . . . . . . . . . Hauler 14 | . 2 . . 6 . 4 2 . . . . . . . Recycler 9 | 1 . . . . . 3 1 . . . 2 1 . 1 Mechanic 2 | . . . . 1 . 1 . . . . . . . . Operator 3 | . . 1 . 1 . . . . . 1 . . . . Drone 1 | . . . . . . . . . . . . . . 1 Watcher 15 | . 3 . . 4 . 2 3 . . . 2 1 . . Swarmer 27 | . . . . 3 . . . 6 2 . 2 5 . 9 Grunt 63 | . 3 2 . 13 . 7 3 17 . . 7 4 . 7 Duelist 4 | . . . . 1 . 1 . . . . . 1 . 1 Protector 1 | . . . . . . . . 1 . . . . . . Sentry 21 | . . 2 . 8 1 3 2 . . 1 1 1 2 . Demolisher 1 | . . . . . . . . 1 . . . . . . Hunter 7 | . . . . 3 . . 1 . . . . 1 . 2 Programmer 15 | . . . . . . . 5 . . 1 5 4 . . Best Kill Streak 15 | 2 2 4 1 5 1 6 3 9 2 1 15 5 1 10 Combat Bots Only 9 | . 2 4 . 3 1 3 2 9 2 1 8 5 1 9 Max Kills in Single Turn 5 | 1 1 2 1 2 1 2 1 3 1 1 4 2 1 5 Gunslinging 1 | . . . . . . . . . . . 1 . . . Exploded 4 | . . 2 . 2 . 2 . 3 1 . 2 2 . 4 Melee . | . . . . . . . . . . . . . . . Uniques/NPCs Destroyed . | . . . . . . . . . . . . . . . Combat | -11 -10 -9 -9 -8 -8 -8 -7 -7 -7 -6 -5 -4 -3 -2 -------- Run | Yrd Mat Mat Min Mat Gar Mat Fac Gar Fac Fac Fac Fac Res Res Hostile Shots Fired 872 | . 9 32 . 93 . 27 142 73 10 11 74 153 45 203 Missed 317 | . 2 12 . 30 . 2 63 17 3 5 28 56 13 86 Hits 555 | . 7 20 . 63 . 25 79 56 7 6 46 97 32 117 Melee 10 | . . . . . . . . . . . . 3 . 7 Projectile 545 | . 7 20 . 63 . 25 79 56 7 6 46 94 32 110 AOE 3 | . . . . . . . . 2 . . 1 . . . Critical Strikes 26 | . . . . . . 1 3 4 . 1 2 6 2 7 Damage Taken 10035 | . 76 314 . 896 . 418 871 1059 116 59 1043 1677 660 2846 Core 2212 | . 32 12 . 49 . 44 73 166 33 6 128 159 51 1459 Absorbed by Shields 244 | . . . . . . . . . . . . . 128 116 Ignored by Resistances 374 | . . . . . . . . . . 4 70 300 . . Regen/Repaired (Parts) 570 | . . . . 279 . . . . . 291 . . . . Core Remaining (%) 88 | 100 87 . 97 . . 83 . . 61 99 87 86 96 . Volleys Fired 493 | 11 42 11 3 91 13 50 46 61 10 6 42 62 15 30 Largest 4 | 2 2 3 3 4 3 4 4 4 1 4 4 4 4 4 Hottest 215 | 90 100 150 123 151 101 164 164 88 33 145 145 215 178 178 Shots Fired 1341 | 22 84 26 9 289 19 170 181 145 11 18 110 157 37 63 Gun 1241 | 22 84 26 9 279 19 162 181 119 1 16 95 144 34 50 Cannon . | . . . . . . . . . . . . . . . Launcher 73 | . . . . 10 . 8 . 23 4 . 10 5 . 13 Special 27 | . . . . . . . . 3 6 2 5 8 3 . Kinetic 522 | . . 1 3 136 6 84 91 53 . 4 19 61 22 42 Thermal 719 | 22 84 25 6 143 13 78 90 66 1 12 76 83 12 8 Explosive 73 | . . . . 10 . 8 . 23 4 . 10 5 . 13 Electromagnetic . | . . . . . . . . . . . . . . . Robot Hit Streak 20 | 6 6 7 3 17 9 12 11 20 2 3 15 15 13 8 Robot Miss Streak 10 | 3 10 3 1 7 1 5 4 4 2 2 3 4 2 3 Penetration Max 1 | . . . . . . . . . . . . 1 . . Secondary Targets 9 | . . . . 1 . 1 . 3 . . 1 3 . . Max Gunslinging Chain 1 | . . . . 1 . 1 . 1 . . 1 1 . . Shots Hit Robots 769 | 13 37 10 4 168 9 92 99 79 3 14 76 106 30 29 Core Hits 443 | 5 16 6 2 85 3 43 36 52 3 7 60 62 10 53 Critical Kills 1 | . . . . . . . . . . . . 1 . . Critical Parts Destroyed 3 | . . . 1 1 . . . . . . . . 1 . Critical Strikes 35 | 1 1 1 1 10 . 3 8 1 . 2 1 3 3 . Burn 30 | 1 1 1 . 9 . 3 8 1 . 2 1 2 1 . Destroy 5 | . . . 1 1 . . . . . . . 1 2 . Melee Attacks 1 | . . 1 . . . . . . . . . . . . Impact . | . . . . . . . . . . . . . . . Slashing 1 | . . 1 . . . . . . . . . . . . Piercing . | . . . . . . . . . . . . . . . Sneak Attacks . | . . . . . . . . . . . . . . . Combat Hostiles . | . . . . . . . . . . . . . . . Follow-up Attacks . | . . . . . . . . . . . . . . . Damage Inflicted 21624 | 153 481 426 55 3126 157 2275 1823 2518 209 246 2793 2910 638 3814 Guns 13420 | 153 481 126 49 2345 157 1707 1823 1154 . 246 1481 2469 638 591 Cannons . | . . . . . . . . . . . . . . . Explosions 8149 | . . 298 . 781 . 568 . 1364 209 . 1298 441 . 3190 Melee . | . . . . . . . . . . . . . . . Ramming 55 | . . 2 6 . . . . . . . 14 . . 33 Kinetic 4988 | . . . 12 1082 93 650 703 407 . 35 226 882 395 503 Thermal 8432 | 153 481 126 37 1263 64 1057 1120 747 . 211 1255 1587 243 88 Explosive 8149 | . . 298 . 781 . 568 . 1364 209 . 1298 441 . 3190 Electromagnetic . | . . . . . . . . . . . . . . . Impact . | . . . . . . . . . . . . . . . Slashing . | . . . . . . . . . . . . . . . Piercing . | . . . . . . . . . . . . . . . Highest Corruption 5 | . . . . . . . 4 4 4 . 2 5 . . Average Corruption 3 | . . . . . . . 1 4 4 . 2 2 . . Corruption Purged . | . . . . . . . . . . . . . . . Corruption Blocked . | . . . . . . . . . . . . . . . Effects 72 | . . . . . . . 9 25 12 . 14 12 . . Message Errors 14 | . . . . . . . 4 2 2 . 3 3 . . Matter Fused 15 | . . . . . . . 2 8 . . 4 1 . . Heat Flow Errors 12 | . . . . . . . . 4 3 . 3 2 . . Energy Discharges 8 | . . . . . . . . 2 2 . 1 3 . . Parts Rejected 2 | . . . . . . . . . 1 . . 1 . . Data Loss (minor) 10 | . . . . . . . 1 4 2 . 1 2 . . Data Loss (major) 2 | . . . . . . . 1 . 1 . . . . . Misfires 4 | . . . . . . . . 2 1 . 1 . . . Alerts 3 | . . . . . . . . 2 . . 1 . . . Weapon Failures 2 | . . . . . . . 1 1 . . . . . . Overload Shots . | . . . . . . . . . . . . . . . Overflow Damage 271 | . . 74 . 15 . . . . 1 . 17 . . 164 Projectiles . | . . . . . . . . . . . . . . . Explosions 271 | . . 74 . 15 . . . . 1 . 17 . . 164 Melee . | . . . . . . . . . . . . . . . Knockbacks . | . . . . . . . . . . . . . . . Impact . | . . . . . . . . . . . . . . . Kinetic . | . . . . . . . . . . . . . . . Secondary . | . . . . . . . . . . . . . . . Self-Inflicted Damage 440 | . . 41 . 19 . . . 21 . . 44 48 . 267 Shots 12 | . . 1 . 1 . . . 1 . . 1 2 . 6 Rammed 11 | . . 1 1 . . . . . . . 1 . . 8 Targets Rammed 11 | . . 1 1 . . . . . . . 1 . . 8 Kicked . | . . . . . . . . . . . . . . . Crushed . | . . . . . . . . . . . . . . . Highest Temperature 478 | 120 264 478 . 340 . 264 129 255 218 9 256 256 430 167 Average Temperature 70 | 52 75 243 . 30 . 72 39 91 101 6 44 73 98 63 Received Heat Transfer 2067 | . 45 99 . 261 . 225 150 441 . 12 249 199 137 249 Effects 8 | . . 5 . . . 2 . . . . . . 1 . Shutdowns 1 | . . 1 . . . . . . . . . . . . Interference 2 | . . . . . . 2 . . . . . . . . Short Circuit 1 | . . . . . . . . . . . . . 1 . Damage (major) 4 | . . 4 . . . . . . . . . . . . Siege Activations . | . . . . . . . . . . . . . . . Martial Activations . | . . . . . . . . . . . . . . . Shielding Activations . | . . . . . . . . . . . . . . . Robots Disrupted . | . . . . . . . . . . . . . . . Combat Hostiles . | . . . . . . . . . . . . . . . Robots Corrupted . | . . . . . . . . . . . . . . . Combat Hostiles . | . . . . . . . . . . . . . . . Parts Fried . | . . . . . . . . . . . . . . . Impact Corruptions . | . . . . . . . . . . . . . . . Robots Melted 4 | . . . . . . . 1 . . . 3 . . . Combat Hostiles 4 | . . . . . . . 1 . . . 3 . . . Parts Melted 50 | . 2 . . 12 . 7 10 . . 1 5 10 3 . Heat Transferred 20396 | 483 1445 444 111 4033 52 2183 2590 1517 . 557 2521 3610 650 200 Parts Sabotaged . | . . . . . . . . . . . . . . . Parts Stolen . | . . . . . . . . . . . . . . . Parts Stripped . | . . . . . . . . . . . . . . . Power Chain Reactions . | . . . . . . . . . . . . . . . Alert | -11 -10 -9 -9 -8 -8 -8 -7 -7 -7 -6 -5 -4 -3 -2 ------- Run | Yrd Mat Mat Min Mat Gar Mat Fac Gar Fac Fac Fac Fac Res Res Maximum Alert Level 3 | . . . . 2 2 2 . 3 2 . 1 1 . 2 Low Security (%) 63 | 100 100 100 100 41 . . 100 22 . 100 94 93 100 30 Level 1 18 | . . . . 37 2 95 . 9 76 . 5 6 . 29 Level 2 17 | . . . . 21 97 4 . 60 23 . . . . 40 Level 3 . | . . . . . . . . 7 . . . . . . Level 4 . | . . . . . . . . . . . . . . . Level 5 . | . . . . . . . . . . . . . . . High Security . | . . . . . . . . . . . . . . . Max Security . | . . . . . . . . . . . . . . . Peak Influence 880 | 5 40 131 24 502 682 439 104 880 462 132 280 237 71 643 Initial 462 | . . 1 24 . 312 332 104 51 462 127 14 133 71 6 Average 180 | 2 7 56 . 240 512 292 34 445 333 57 54 114 21 352 Influence Increases 5771 | 20 132 167 10 1025 370 434 424 879 68 81 535 571 79 976 Destroy 0b10 Robot/C 2760 | . 60 80 . 560 20 220 220 480 40 40 300 320 40 380 Destroy 0b10 Robot/NC 365 | 20 30 5 10 85 . 60 45 5 . 5 65 20 . 15 Destroy Leader 648 | . 30 20 . 180 . 82 90 30 10 20 64 52 20 50 Allied During Kill 1 | . . . . . . . . 1 . . . . . . Successful Hack 65 | . 12 . . 20 . . 5 . . 16 12 . . . Disable Machine 300 | . . 30 . 90 . 15 45 30 . . 15 60 . 15 Anti-Garrison Action 550 | . . . . . 350 . . 200 . . . . . . Destroy Structure 827 | . . 32 . 75 . 57 4 118 18 . 34 74 4 411 Partial Spotted 15 | . . . . . . . . . . . . 15 . . Lose Combat Pursuer 240 | . . . . 15 . . 15 15 . . 45 30 15 105 Influence Decreases 5153 | 20 127 110 72 544 169 886 580 73 688 311 291 709 203 370 Entered New Map 1489 | . . 4 38 . 169 350 126 23 418 133 16 141 65 6 Time Decay 3124 | 20 127 66 34 514 . 386 424 . 270 178 255 478 138 234 Lost Part 360 | . . 40 . 30 . . 30 50 . . 20 70 . 120 Lost Ally 30 | . . . . . . . . . . . . 20 . 10 Purge Threat 150 | . . . . . . 150 . . . . . . . . Squads Dispatched 35 | . 2 2 . 4 . 1 5 . 2 . 7 6 . 6 Investigation 6 | . 2 1 . 1 . 1 . . . . . . . 1 Extermination 10 | . . . . . . . 5 . . . 2 2 . 1 Reinforcement 11 | . . 1 . 3 . . . . . . 2 1 . 4 Assault . | . . . . . . . . . . . . . . . Garrison 8 | . . . . . . . . . 2 . 3 3 . . Intercept . | . . . . . . . . . . . . . . . Searches Triggered . | . . . . . . . . . . . . . . . Construction Impeded 5 | . . 1 . 1 . . . . . . 2 . . 1 Haulers Reinforced 1 | . . . . . . . . . . . . 1 . . Active Scanning Responses . | . . . . . . . . . . . . . . . Cargo Convoy Interrupts . | . . . . . . . . . . . . . . . Stealth | -11 -10 -9 -9 -8 -8 -8 -7 -7 -7 -6 -5 -4 -3 -2 --------- Run | Yrd Mat Mat Min Mat Gar Mat Fac Gar Fac Fac Fac Fac Res Res Distress Signals 12 | . . 1 . 3 . 3 1 . 1 . . . 1 2 Communications Jammed . | . . . . . . . . . . . . . . . Distress Signals . | . . . . . . . . . . . . . . . Times Spotted 241 | . 11 16 1 40 . 19 18 27 3 2 24 32 11 37 Peak Tracking Total 10 | . 2 10 1 4 . 3 2 4 3 1 7 5 8 9 Tactical Retreats 12 | . . . 1 1 . . 1 1 . . 2 2 1 3 Traps | -11 -10 -9 -9 -8 -8 -8 -7 -7 -7 -6 -5 -4 -3 -2 ------- Run | Yrd Mat Mat Min Mat Gar Mat Fac Gar Fac Fac Fac Fac Res Res Traps Triggered 14 | . 1 . . 4 1 . 2 3 . . 3 . . . Indirectly . | . . . . . . . . . . . . . . . Trap Hack Attempts . | . . . . . . . . . . . . . . . Triggered . | . . . . . . . . . . . . . . . Disarmed . | . . . . . . . . . . . . . . . Reprogrammed . | . . . . . . . . . . . . . . . Reused . | . . . . . . . . . . . . . . . Traps Extracted . | . . . . . . . . . . . . . . . Installed . | . . . . . . . . . . . . . . . Triggered . | . . . . . . . . . . . . . . . Machines | -11 -10 -9 -9 -8 -8 -8 -7 -7 -7 -6 -5 -4 -3 -2 ---------- Run | Yrd Mat Mat Min Mat Gar Mat Fac Gar Fac Fac Fac Fac Res Res Machines Disabled 25 | . . 2 . 6 3 1 3 4 . . 1 4 . 1 Max in Single Turn 2 | . . 2 . 1 1 1 1 1 . . 1 1 . 1 Garrison Relay 5 | . . . . . 3 . . 2 . . . . . . Machines Repaired . | . . . . . . . . . . . . . . . Machines Dismantled . | . . . . . . . . . . . . . . . Machines Sabotaged . | . . . . . . . . . . . . . . . Overloaded Fab Kills . | . . . . . . . . . . . . . . . Hacking | -11 -10 -9 -9 -8 -8 -8 -7 -7 -7 -6 -5 -4 -3 -2 --------- Run | Yrd Mat Mat Min Mat Gar Mat Fac Gar Fac Fac Fac Fac Res Res Machines Accessed 44 | . 6 2 . 10 . 6 9 2 1 3 3 2 . . Terminals 27 | . 5 2 . 5 . 6 2 2 . 2 2 1 . . Fabricators 5 | . . . . . . . 4 . 1 . . . . . Repair Stations 6 | . . . . 2 . . 1 . . 1 1 1 . . Recycling Units 3 | . 1 . . 1 . . 1 . . . . . . . Scanalyzers 1 | . . . . 1 . . . . . . . . . . Garrison Access 2 | . . . . 1 . . 1 . . . . . . . Total Hacks 98 | . 16 7 . 23 . 14 15 4 2 7 7 3 . . Successful 45 | . 6 5 . 14 . 1 10 1 . 3 2 3 . . Failed 53 | . 10 2 . 9 . 13 5 3 2 4 5 . . . Catastrophic 10 | . 2 . . 1 . 3 3 . . . 1 . . . Database Lockouts . | . . . . . . . . . . . . . . . Manual 18 | . 2 . . 2 . 14 . . . . . . . . Terminals 66 | . 11 7 . 13 . 14 6 4 . 5 5 1 . . Fabricators 8 | . . . . . . . 6 . 2 . . . . . Repair Stations 13 | . . . . 6 . . 1 . . 2 2 2 . . Recycling Units 8 | . 5 . . 2 . . 1 . . . . . . . Scanalyzers 1 | . . . . 1 . . . . . . . . . . Garrison Access 2 | . . . . 1 . . 1 . . . . . . . Terminal Hacks 25 | . 4 5 . 7 . 1 4 1 . 1 1 1 . . Robot Analysis 1 | . . . . . . . 1 . . . . . . . Prototype ID Bank 4 | . . 2 . 1 . . 1 . . . . . . . Open DSF 1 | . . . . . . . 1 . . . . . . . Branch Access Points 1 | . . . . 1 . . . . . . . . . . Emergency Access Points 1 | . . 1 . . . . . . . . . . . . Alert Level 2 | . . . . 2 . . . . . . . . . . Unreport Threat 1 | . . . . . . 1 . . . . . . . . Locate Traps 7 | . 2 1 . 1 . . 1 . . 1 1 . . . Hauler Manifests 1 | . . . . 1 . . . . . . . . . . Registered Components 1 | . 1 . . . . . . . . . . . . . Zone Layout 4 | . 1 1 . 1 . . . . . . . 1 . . Security Stations 1 | . . . . . . . . 1 . . . . . . Fabricator Hacks 4 | . . . . . . . 4 . . . . . . . Network Status 3 | . . . . . . . 3 . . . . . . . Build 1 | . . . . . . . 1 . . . . . . . Repair Station Hacks 11 | . . . . 6 . . . . . 2 1 2 . . Scan Component 6 | . . . . 3 . . . . . 1 1 1 . . Repair 5 | . . . . 3 . . . . . 1 . 1 . . Recycling Unit Hacks 3 | . 2 . . . . . 1 . . . . . . . Report Inventory 2 | . 1 . . . . . 1 . . . . . . . Retrieve Components 1 | . 1 . . . . . . . . . . . . . Scanalyzer . | . . . . . . . . . . . . . . . Garrison Access Hacks 2 | . . . . 1 . . 1 . . . . . . . Unlock Access 2 | . . . . 1 . . 1 . . . . . . . Unauthorized Hacks . | . . . . . . . . . . . . . . . Terminals . | . . . . . . . . . . . . . . . Fabricators . | . . . . . . . . . . . . . . . Repair Stations . | . . . . . . . . . . . . . . . Recycling Units . | . . . . . . . . . . . . . . . Scanalyzers . | . . . . . . . . . . . . . . . Garrison Access . | . . . . . . . . . . . . . . . Data Cores Recovered 2 | . . 1 . . . . . . . 1 . . . . Used 1 | . . . . . . . . . . 1 . . . . Hacking Detections 33 | . 5 2 . 7 . 6 6 1 1 3 2 . . . Full Trace Events 4 | . 1 1 . . . 2 . . . . . . . . Feedback Events . | . . . . . . . . . . . . . . . Feedback Blocked . | . . . . . . . . . . . . . . . Robot Schematics Acquired . | . . . . . . . . . . . . . . . Robots Built . | . . . . . . . . . . . . . . . Authchips . | . . . . . . . . . . . . . . . Time . | . . . . . . . . . . . . . . . Total Robot Build Rating . | . . . . . . . . . . . . . . . Part Schematics Acquired . | . . . . . . . . . . . . . . . Parts Built 2 | . . . . . . . 2 . . . . . . . Authchips . | . . . . . . . . . . . . . . . Time 47 | . . . . . . . 47 . . . . . . . Total Part Build Rating 10 | . . . . . . . 10 . . . . . . . Parts Repaired 4 | . . . . 3 . . . . . 1 . . . . Time 184 | . . . . 96 . . . . . 38 . 50 . . Parts Recycled . | . . . . . . . . . . . . . . . Recycled Matter . | . . . . . . . . . . . . . . . Retrieved Matter . | . . . . . . . . . . . . . . . Retrieved Components 2 | . 2 . . . . . . . . . . . . . Parts Scanalyzed . | . . . . . . . . . . . . . . . Part Schematics Acquired . | . . . . . . . . . . . . . . . Parts Damaged . | . . . . . . . . . . . . . . . Bothacking | -11 -10 -9 -9 -8 -8 -8 -7 -7 -7 -6 -5 -4 -3 -2 ------------ Run | Yrd Mat Mat Min Mat Gar Mat Fac Gar Fac Fac Fac Fac Res Res Used RIF Installer 2 | . . . . . 1 . . 1 . . . . . . Robot Detection 1 | . . . . . . . . 1 . . . . . . Robots Hacked 9 | . . . . . . . . 1 2 . 3 2 1 . Non-combat 6 | . . . . . . . . . 2 . 3 . 1 . Combat 3 | . . . . . . . . 1 . . . 2 . . Robot Hacks Applied 11 | . . . . . . . . 1 2 . 3 3 2 . parse_system 2 | . . . . . . . . . 2 . . . . . start_evac 3 | . . . . . . . . . . . 3 . . . drop_inventory 1 | . . . . . . . . . . . . . 1 . locate_stockpiles 1 | . . . . . . . . . . . . . 1 . scatter_targeting 1 | . . . . . . . . . . . . 1 . . disable_weapons 1 | . . . . . . . . . . . . 1 . . streamctrl_high 1 | . . . . . . . . 1 . . . . . . formatsys_high 1 | . . . . . . . . . . . . 1 . . Relay Couplers Released 23 | . . . . . 14 . . 9 . . . . . . Machine Destruction 23 | . . . . . 14 . . 9 . . . . . . Attached 4 | . . . . . . . . 1 1 . 1 1 . . Fabnet Peak Effective % . | . . . . . . . . . . . . . . . Robots Rewired . | . . . . . . . . . . . . . . . Allies Hacked . | . . . . . . . . . . . . . . . Hacks Repelled . | . . . . . . . . . . . . . . . Allies | -11 -10 -9 -9 -8 -8 -8 -7 -7 -7 -6 -5 -4 -3 -2 -------- Run | Yrd Mat Mat Min Mat Gar Mat Fac Gar Fac Fac Fac Fac Res Res Total Allies 2 | . . . . . . . . 1 . . . 1 . . Largest Group 1 | . . . . . . . . 1 . . . 1 . . Highest-Rated Group 56 | . . . . . . . . 16 . . . 56 . . Highest-Rated Ally 56 | . . . . . . . . 16 . . . 56 . . Total Orders 7 | . . . . . . . . . . . . 4 . 3 ROAM 1 | . . . . . . . . . . . . . . 1 EXPLORE 4 | . . . . . . . . . . . . 2 . 2 RETURN 2 | . . . . . . . . . . . . 2 . . Ally Attacks 10 | . . . . . . . . 2 . . . 8 . . Total Damage 220 | . . . . . . . . 13 . . . 207 . . Kills 1 | . . . . . . . . . . . . 1 . . Allies Corrupted . | . . . . . . . . . . . . . . . Allies Melted . | . . . . . . . . . . . . . . . Intel | -11 -10 -9 -9 -8 -8 -8 -7 -7 -7 -6 -5 -4 -3 -2 ------- Run | Yrd Mat Mat Min Mat Gar Mat Fac Gar Fac Fac Fac Fac Res Res Active Infowar (turns) 9389 | 21 676 98 . 1072 . . 2199 1201 598 374 1112 1223 365 450 Optics 7515 | . . . . . . . 2199 1201 598 374 1112 1223 365 443 Terrain 508 | . . . . . . . . . . . . 508 . . Structural 185 | . . . . 185 . . . . . . . . . . Traps 1142 | . . . . . . . 1142 . . . . . . . Seismic 795 | 21 676 98 . . . . . . . . . . . . T.N.C. 887 | . . . . 887 . . . . . . . . . . Cloaking 9 | . . . . . . . . . . . . . . 9 Jamming 25 | . . . . . . . . . . . 25 . . . Robot Analysis Total 1 | . . . . . . . 1 . . . . . . . Derelict Logs Recovered 1 | . . . 1 . . . . . . . . . . . Drone Launches 10 | . . . . . . . . . . . . 5 . 5 Drone Recoveries 8 | . . . . . . . . . . . . 5 . 3 Exploration | -11 -10 -9 -9 -8 -8 -8 -7 -7 -7 -6 -5 -4 -3 -2 ------------- Run | Yrd Mat Mat Min Mat Gar Mat Fac Gar Fac Fac Fac Fac Res Res Turns Passed 13457 | 115 676 213 1067 1942 813 907 2240 1201 598 374 1112 1223 365 611 Spaces Moved 7267 | 49 383 121 438 946 517 486 1374 470 226 261 659 675 202 460 Core 291 | . . . . . . . . . . . . . . 291 Treads 1206 | 44 . 11 438 187 . . . 299 226 . . . . 1 Legs . | . . . . . . . . . . . . . . . Wheels 5770 | 5 383 110 . 759 517 486 1374 171 . 261 659 675 202 168 Hover . | . . . . . . . . . . . . . . . Flight . | . . . . . . . . . . . . . . . Fastest Speed 50 | 100 100 95 240 120 150 150 135 135 250 115 115 112 130 50 Average Speed 152 | 153 111 118 240 152 150 150 143 208 250 115 143 134 153 107 Slowest Speed 950 | 160 115 160 240 240 150 150 150 250 250 115 145 150 190 950 Overloaded Moves . | . . . . . . . . . . . . . . . Propulsion Burnouts . | . . . . . . . . . . . . . . . Robots Hopped . | . . . . . . . . . . . . . . . Potential Cave-ins . | . . . . . . . . . . . . . . . Cave-ins Triggered . | . . . . . . . . . . . . . . . Exploration Rate (%) 31 | 4 61 14 53 72 56 51 29 51 9 9 19 19 6 25 Regions Visited 14 Branch Regions 1 Pre-discovered Areas . | . . . . . . . . . . . . . . . Known Exits Taken 2 | . . . . 1 . . 1 . . . . . . . Unknown Exits Taken 10 | 1 1 1 1 . . 1 . . 1 1 1 1 1 . Scrap Searched . | . . . . . . . . . . . . . . . Spaces Dug 13 | . . 1 . 5 . 6 . . . . . 1 . . Terrain Destroyed 576 | . . 43 . 74 . 59 . 131 20 . 15 37 1 196 Melee 1 | . . 1 . . . . . . . . . . . . Projectile 29 | . . . . . . 1 . . . . . 12 1 15 AOE 546 | . . 42 . 74 . 58 . 131 20 . 15 25 . 181 Terrain Rammed . | . . . . . . . . . . . . . . . Walls Destroyed . | . . . . . . . . . . . . . . . Machines Disabled . | . . . . . . . . . . . . . . . Actions | -11 -10 -9 -9 -8 -8 -8 -7 -7 -7 -6 -5 -4 -3 -2 --------- Run | Yrd Mat Mat Min Mat Gar Mat Fac Gar Fac Fac Fac Fac Res Res Total 8639 | 66 550 165 446 1248 539 551 1531 586 251 326 746 869 235 530 Wait 523 | . 110 20 . 135 . 4 75 28 3 38 4 95 5 6 Move 7255 | 48 382 120 437 946 516 485 1374 469 225 260 658 674 201 460 Hop . | . . . . . . . . . . . . . . . Pick Up 77 | . 9 . 1 17 5 2 10 2 2 9 9 6 1 4 Fast Attach 40 | 1 . 3 . 14 . . 2 . 2 1 3 4 6 4 Attach 37 | . . 3 . 6 . . 6 3 1 1 2 7 2 6 Detach 15 | . . . . 7 . . 1 . . . 1 2 2 2 Swap 111 | 3 3 4 2 14 . 7 10 19 5 3 18 14 2 7 Drop 68 | 3 4 2 1 18 2 3 7 . 3 8 8 5 1 3 Fire 493 | 11 42 11 3 91 13 50 46 61 10 6 42 62 15 30 Melee 1 | . . 1 . . . . . . . . . . . . Ram 10 | . . 1 . . . . . . . . 1 . . 8 Kick . | . . . . . . . . . . . . . . . Crush 1 | . . . 1 . . . . . . . . . . . Escape Stasis 4 | . . . . . . . . 4 . . . . . . Rewire 4 | . . . 1 . 3 . . . . . . . . . Trap . | . . . . . . . . . . . . . . . Miscellaneous . | . . . . . . . . . . . . . . . Route ------- -11/Scrapyard -10/Materials -9/Materials -9/Mines -8/Materials (discovered 4 exits: *Fac / *Sto x2 / Gar) -8/Garrison (discovered 2 exits: *Mat x2) -8/Materials (discovered 2 exits: *Fac / *Sto) -7/Factory (discovered 3 exits: *Fac x2 / Gar) -7/Garrison -7/Factory -6/Factory -5/Factory -4/Factory -3/Research (discovered 2 exits: [*Res] / [*Tes]) -2/Research History --------- Turn | Location | Event 6 | -11/Scrapyard | Discovered new exit (range 2) 116 | -11/Scrapyard | Entered Materials 302 | -10/Materials | Build established: Mutant 674 | -10/Materials | Discovered new exit (range 12) 792 | -10/Materials | Entered another Materials area 792 | -9/Materials | Evolved 2 slots: Utility x1, Weapon x1 852 | -9/Materials | Discovered new exit (range 15) 921 | -9/Materials | Lost 4 parts (1n2u1w) 1005 | -9/Materials | Entered Mines 1035 | -9/Mines | Met a Derelict bent on vengeance 1069 | -9/Mines | Learned Materials emergency access door positions 1219 | -9/Mines | Build established: Gunner 1422 | -9/Mines | Discovered new exit (range 9) 1830 | -9/Mines | Assembled infested the area 1835 | -9/Mines | Assisted by a Guerilla fighting off Assembled 2072 | -9/Mines | Entered Materials 2072 | -8/Materials | Evolved 2 slots: Utility x1, Weapon x1 2348 | -8/Materials | Identified exit to Storage 2853 | -8/Materials | Build established: Scavenger-Tank 2864 | -8/Materials | Discovered new exit (range 16) 3676 | -8/Materials | Repaired Arm. Wheel 3925 | -8/Materials | Repaired Hvy. Assault Rifle 3958 | -8/Materials | Repaired Hvy. Assault Rifle 4014 | -8/Materials | Identified exit to Garrison 4014 | -8/Materials | Entered Garrison 4014 | -8/Garrison | Discovered recently destroyed garrison 4237 | -8/Garrison | Discovered new exit (range 8) 4266 | -8/Garrison | Installed Relay Interface Framework 4281 | -8/Garrison | Build established: Scavenger-Gunner 4318 | -8/Garrison | Garrison Relay disabled 4335 | -8/Garrison | Garrison Relay disabled 4680 | -8/Garrison | Garrison Relay disabled 4703 | -8/Garrison | Discovered new exit (range 12) 4827 | -8/Garrison | Entered Materials 4877 | -8/Materials | Discovered exit to Storage (range 8) 5471 | -8/Materials | Discovered new exit (range 8) 5723 | -8/Materials | Build established: Gunner 5734 | -8/Materials | Entered Factory 5734 | -7/Factory | Evolved 2 slots: Utility x2 6047 | -7/Factory | Discovered new exit (range 6) 7097 | -7/Factory | Fabricated Adv. Terrain Scanner (x2) 7784 | -7/Factory | Discovered new exit (range 8) 7974 | -7/Factory | Identified exit to Garrison 7974 | -7/Factory | Entered Garrison 8074 | -7/Garrison | Triggered checkpoint 8242 | -7/Garrison | Triggered checkpoint 8277 | -7/Garrison | Triggered checkpoint 8318 | -7/Garrison | Triggered checkpoint 8350 | -7/Garrison | Triggered checkpoint 8376 | -7/Garrison | Destroyed 9 combat bots 8809 | -7/Garrison | Discovered new exit (range 12) 8822 | -7/Garrison | Learned Factory security intel 8954 | -7/Garrison | Triggered checkpoint 9009 | -7/Garrison | Expanded RIF knowledge: Robot Detection 9031 | -7/Garrison | Garrison Relay disabled 9175 | -7/Garrison | Entered Factory 9348 | -7/Factory | Build established: Bothacker-Gunner 9663 | -7/Factory | Garrison activated, responded to threat 9733 | -7/Factory | Discovered new exit (range 7) 9773 | -7/Factory | Entered another Factory area 9773 | -6/Factory | Evolved 2 slots: Propulsion x2 9985 | -6/Factory | Found Hvy. Reactive Plating 10124 | -6/Factory | Repaired Arm. Treads 10134 | -6/Factory | Discovered new exit (range 6) 10147 | -6/Factory | Entered another Factory area 10147 | -5/Factory | Evolved 2 slots: Utility x2 10457 | -5/Factory | Build established: Tank 11242 | -5/Factory | Discovered new exit (range 12) 11249 | -5/Factory | Destroyed 8 combat bots 11259 | -5/Factory | Entered another Factory area 11259 | -4/Factory | Evolved 2 slots: Utility x2 11751 | -4/Factory | Discovered new exit (range 47) 12113 | -4/Factory | Spotted B-86 Titan 12249 | -4/Factory | Garrison activated, responded to threat 12406 | -4/Factory | Lost 3 parts (1n1u1w) 12482 | -4/Factory | Entered Research 12482 | -3/Research | Evolved 2 slots: Utility x2 12575 | -3/Research | Discovered new exit (range 16) 12781 | -3/Research | Discovered new exit (range 5) 12847 | -3/Research | Entered another Research area 12847 | -2/Research | Evolved 2 slots: Power x1, Utility x1 12900 | -2/Research | Found Fusion Bomb Launcher 12948 | -2/Research | Build established: Scavenger-Tank 13082 | -2/Research | Destroyed 9 combat bots 13290 | -2/Research | Released all parts (10) 13321 | -2/Research | Lost 10 parts (3n4u3w) 13428 | -2/Research | Core integrity fell below 50% 13443 | -2/Research | Core integrity fell below 20% 13458 | -2/Research | Destroyed by S-43 Plague with Heavy Machine Gun Last Messages --------------- 13322_ Critical hit (Burn: +37). 13327_ Adv. Cloaking Device destroyed. 13327_ Slug penetrates Wall. 13334_ Slammed into K-01 Serf. 13355_ Dropped Imp. Launcher Guidance Computer. 13356_ Dropped Broken Railgun. 13357_ Acquired Adv. Power Amplifier. 13359_ Acquired Prototype Flight Unit. 13395_ ALERT: Suspicious intruders detected, dispatching Cutter reinforcements to area. 13400_ Slug penetrates Wall. 13401_ K-01 Serf cleans the Field Manipulator. 13423_ Slammed into S-43 Plague. 13437_ Slug penetrates S-43 Plague. 13437_ Slug penetrates Wall. 13443_ Penetrated by Slug. 13444_ Slug penetrates Wall. 13444_ Slug penetrates Reinforced Barrier. 13452_ Slammed into K-01 Serf. 13455_ K-01 Serf cleans the Field Manipulator. Map ----- +----------------------------------------------------+ | ####### #????????????????# #?????????????????????? | | + #????????????????# #?????????????????????? | | # ####????????????????# #?????????????????????? | | # #???????????????????# #?????#######?????????? | | + #??########?????????# #?#?? ????????? | | # #??# #?????????# #?# ? =#??????? | | # #??# #?????????# #?# """ #??????? | | # #??# #?????????# #?# """ "" #??????? | | # #??# #?????????# ### """ "" #??????? | | # #??# ]#?????????# ## "" #??????? | | # #??# #?????????# #?# S #??????? | | # #??####+###?????????# #?# """ "" #??????? | | # ###### #??????????# #?# """ "" #??????? | | # H #??????????# #?# """ "" #??????? | | # ### #??????????# #?# #??????? | | # ####+####????????# #?# #??????? | | # # #??????###+#######+#/######??????? | | ####### # #??????# # ############ | | # # #??????# # # | | ! !# # #??????# """ # # | | # # ! #??????# """" + + | | # ##+############# """" # # | | = + ss """k # # ! | | # =#######s k # ############ | | ####+## #?????# # # """ # | | # ########@######## # """ # | | # """ ## #??????# # """ # | | # """ ## #??????# + # | | #+## """ ## #??????# # #? | | # ## "" #??????# # #? | | # ## "" ######## # #? | | + ## S" # # #? | | #+##### T# ## """ # ###########? | | # #### ## """ # + #?? | | #= #??# ## """ # ## #?? | | #### #??# ## # ######+## #?? | | ???# #??# ## # ## # #?? | | ???# #??# ######+### ## # """ ### | | ???# #??# ## # """ + | | ???#= ! #??# ## [ # """ # | | ???#######??# ## ! # """ # | | ????????????# ## # """ # | | ??????????######"#### #### ## # # | | ??????????# # #??# ## # # | | ??????????# # #??# ######+######+### | | ??????????#""" " #??# | | ??????????#"""" # #??# | | ??????????#"""" # #??# | | ??????????# """ # #??# | | ??????????# + #??###########+########## | +----------------------------------------------------+ Best States ------------- Heat Dissipation 68 Coolant Potential 65 Energy Generation 37 Energy Capacity 350 Matter Stores 300 Matter Capacity 300 Sight Range 20 Terrain Scan Range 20 Terrain Scan Density 110 Jamming Range 14 Cloak Strength 4 Armor Coverage 825 Resistance: KI 40 Resistance: TH 25 Point Defense Rating 80 Weapon Cycling 15 Phase Shifting 5 Evasion (%) 50 Armor Integrity Analysis 30 Recoil Reduction 2 Particle Charging 15 Relay Coupler Types 2 Relay Coupler Value 28 Authchip Count 2 Item Schematics ----------------- None Robot Schematics ------------------ None Fabricated ------------ Adv. Terrain Scanner | x2 | -7/Factory | Preloaded Repaired ---------- Arm. Wheel | 16% | -8/Materials Hvy. Assault Rifle | 15% | -8/Materials Hvy. Assault Rifle | 14% | -8/Materials Arm. Treads | 3% | -6/Factory Alien Tech Used ----------------- None Achievements -------------- Assimilation Complete Leap Before You Look No Signal Challenges ------------ None Game ------ Seed DisruptorProjectileChainsaw Manual? 0 Play Time 02:30:13 Cumulative 64.7 hours Start 2025.09.27 @ 00:30:40 End 2025.09.27 @ 08:17:48 Sessions 5 Manual Loads 0 Difficulty Rogue Special Mode None Game No. 80 Rogue 50 Adventurer 30 Explorer 0 Win Type - Total 0 Types 0/0/0/0/0/0/0/0/0/0 Lore% 30 Gallery% 35 Achievement% 32 Wizard Run 0 Options --------- Layout 1 ASCII 0 Keyboard 1 Movement Arrows Keybinds 0 Fullscreen 1 Font 24/Terminus Map View 50x35 Zoom Use 0% Tactical HUD 1 Map Filters NONE Filters NONE Steam 1 RUN: cae4dfba-b749-4725-aee9-2f8c0421b8f1